{"text_format":"1","workbook":"xlsx","n_sheets":5,"sheets":["Hinweise","ÖR4 Alterswechsel","GAP-SP EG Alterswechsel","VNG Weidetage berechnen","Stammdaten"],"not_rendered":{"charts":0,"images":4,"macros":1,"external_links":1,"defined_names":8,"comments":1,"pivot_tables":0},"unopened":[],"bounds":{"document_bytes":16777216,"sheet_cells":100000,"rows_first":2000,"rows_last":500,"rows_between":2000,"halvings":0,"cell_chars":16384,"cell_head_chars":4096},"cells_cut":0,"cells_raw":0,"read":"whole","date_system":"1900"}

{"sheet":"Hinweise","index":0,"n_rows":11,"n_cols":1,"rows_kept":11,"cut":false,"hidden":false,"merged":[]}
["Information:"]
["Für die Richtigkeit der Angaben wird keine Gewähr übernommen!"]
[]
["- In dem Rechner sind die Tierarten auszuwählen und die entsprechenden Tierzahlen einzutragen. Zusätzlich ist die Dauergrünlandfläche des Betriebes einzugeben."]
["- Im Tabellenblatt \"ÖR4\" kann der Viehbesatz für die Teilnahme an der \"Ökoregelung 4\" berechnet werden."]
["- Im Tabellenblatt \"GAP-SP EG\" kann der Viehbesatz für die Teilnahme an \"GAP-Strategieplan - Extensive Grünlandbewirtschaftung im Unternehmen\" berechnet werden."]
[]
["erstellt von: Agrarumwelt, DLR Rheinhessen-Nahe-Hunsrück, Bad Kreuznach, April 2023"]
["letzte Aktualisierung: Januar 2025"]
["www.agrarumwelt.rlp.de"]
["agrarumwelt@dlr.rlp.de"]

{"sheet":"ÖR4 Alterswechsel","index":1,"n_rows":42,"n_cols":26,"rows_kept":42,"cut":false,"hidden":false,"merged":[[7,1,7,3],[0,0,0,3],[2,1,2,3],[3,1,3,3],[4,1,4,3],[5,1,5,3],[26,2,26,3],[27,2,27,3],[28,2,28,3],[29,0,29,3],[8,0,8,3],[9,2,9,3],[10,2,10,3],[21,0,21,1],[24,0,24,1],[25,2,25,3]]}
["Viehbesatzberechnung für Ökoregel 4 \nExtensive Grünlandbewirtschaftung im Unternehmen mit Alterswechsel"]
[]
["Name:"]
["Straße & Hausnummer:"]
["PLZ:"]
["Ort:"]
[]
["Datum der Berechnung:"]
[{"$f":"IFERROR(\"\",IF(AND(C26<>0,C26<0.3),\"Der Viehbesatz darf an bis zu 40 Tagen unterschritten werden!\",\"\"))","v":""}]
["Dauergrünlandfläche in Hektar eingeben         "]
[]
["Tierart auswählen","RGV","Anzahl\nTiere \neingeben","Anzahl\nTiere \neingeben","Anzahl\nTiere \neingeben","Anzahl\nTiere \neingeben","Anzahl\nTiere \neingeben","Anzahl\nTiere \neingeben","Anzahl\nTiere \neingeben","Anzahl\nTiere \neingeben","Anzahl\nTiere \neingeben","Anzahl\nTiere \neingeben","Anzahl\nTiere \neingeben","Anzahl\nTiere \neingeben","Anzahl\nTiere \neingeben","Anzahl\nTiere \neingeben","Anzahl\nTiere \neingeben","Anzahl\nTiere \neingeben","Anzahl\nTiere \neingeben","Anzahl\nTiere \neingeben","Anzahl\nTiere \neingeben","Anzahl\nTiere \neingeben","Anzahl\nTiere \neingeben","Anzahl\nTiere \neingeben","Anzahl\nTiere \neingeben","Anzahl\nTiere \neingeben"]
[null,null,"Zeitraum 1","Zeitraum 2","Zeitraum 3","Zeitraum 4","Zeitraum 5","Zeitraum 6","Zeitraum 7","Zeitraum 8","Zeitraum 9","Zeitraum 10","Zeitraum 11","Zeitraum 12","Zeitraum 13","Zeitraum 14","Zeitraum 15","Zeitraum 16","Zeitraum 17","Zeitraum 18","Zeitraum 19","Zeitraum 20","Zeitraum 21","Zeitraum 22","Zeitraum 23","Zeitraum 24"]
[null,"Datum von"]
[null,"Datum bis"]
[null,{"$f":"IF(ISERROR(VLOOKUP(A16,$A$34:$B$42,2,FALSE)),\"\",VLOOKUP(A16,$A$34:$B$42,2,FALSE))","v":""}]
[null,""]
[null,""]
[null,""]
[null,""]
[null,""]
["Summe RGV",null,{"$f":"IF(C32=0,\"0\",SUMPRODUCT($B$16:$B$21,C16:C21))","v":"0"},{"$f":"IF(D32=0,\"0\",SUMPRODUCT($B$16:$B$21,D16:D21))","v":"0"},{"$f":"IF(E32=0,\"0\",SUMPRODUCT($B$16:$B$21,E16:E21))","v":"0"},"0","0","0","0","0","0","0","0","0","0","0","0","0","0","0","0","0","0","0","0","0"]
[null,"Anzahl Tage",{"$f":"IF(OR(C14=\"\",C15=\"\"),0,(C15-C14)+1)","v":0},{"$f":"IF(OR(D14=\"\",D15=\"\"),0,(D15-D14)+1)","v":0},0,0,0,0,0,0,0,0,0,0,0,0,0,0,0,0,0,0,0,0,0,0]
[null,"Viehbesatz pro Tag",{"$f":"IF(ISBLANK($C$10),\"\",(C22/$C$10))","v":""},{"$f":"IF(ISBLANK($C$10),\"\",(D22/$C$10))","v":""},{"$f":"IF(ISBLANK($C$10),\"\",(E22/$C$10))","v":""},"","","","","","","","","","","","","","","","","","","","",""]
["Viehbesatz Summe pro Zeitraum",null,{"$f":"IF(ISBLANK($C$10),\"\",C24*C23)","v":""},{"$f":"IF(ISBLANK($C$10),\"\",D24*D23)","v":""},{"$f":"IF(ISBLANK($C$10),\"\",E24*E23)","v":""},"","","","","","","","","","","","","","","","","","","","",""]
["(Zeitraum 01. Jan bis 31. Dez) Viehbesatz im Ø pro Tag",365,{"$f":"IF(OR(ISBLANK(C$10),ISBLANK(C22)),\"\",SUM(C25:Z25)/B26)","v":""}]
["(Zeitraum 01. Jan bis 31. Dez = 365 Tage) Viehbesatz im Ø pro Hektar & Jahr ",null,{"$f":"IF(OR(ISBLANK(C$10),ISBLANK(C22)),\"\",SUM(C25:Z25)/365)","v":""}]
["Min. Viehbesatz im Ø pro Hektar & Jahr",0.3,{"$f":"IF(OR(C10=\"\",C31=0),\"\",IF(C27<$B$28,\"Viehbesatz zu niedrig!\",\"OK\"))","v":""}]
["Max. Viehbesatz im Ø pro Hektar & Jahr",1.4,{"$f":"IF(OR(C10=\"\",C31=0),\"\",IF(C27>$B$29,\"Viehbesatz zu hoch!\",\"OK\"))","v":""}]
[{"$f":"IF(C33<>B26,\"Die aktuelle Eingabe entspricht nicht 365 Tagen!\",\"\")","v":"Die aktuelle Eingabe entspricht nicht 365 Tagen!"}]
[null,null,{"$f":"SUM(C16:C21)","v":0},{"$f":"SUM(D16:D21)","v":0},0,0,0,0,0,0,0,0,0,0,0,0,0,0,0,0,0,0,0,0,0,0]
[null,null,{"$f":"SUMPRODUCT($B$16:$B$21,C16:C21)","v":0},{"$f":"SUMPRODUCT($B$16:$B$21,D16:D21)","v":0},0,0,0,0,0,0,0,0,0,0,0,0,0,0,0,0,0,0,0,0,0,0]
[null,null,{"$f":"IF(SUM(C23:Z23)=0,0,SUM(C23:Z23)-1)","v":0}]
["Bullen, Kühe und sonstige Rinder über 2 Jahre",1,"RGV"]
["Rinder von 6 Monaten bis 2 Jahren",0.6,"RGV",null,{"$f":"tage","v":{"$error":"#NAME?"}}]
["Rinder unter 6 Monaten",0.4,"RGV"]
["Pferde & Equiden (ohne Ponys) von mehr als 6 Monaten",1,"RGV"]
["Ponys von mehr als 6 Monaten",0.7,"RGV"]
["Mutterschafe & Schafe über 1 Jahr",0.15,"RGV"]
["Mutterziegen & Ziegen über 1 Jahr",0.15,"RGV"]
["Damwild",0.15,"RGV"]
["Rotwild",0.3,"RGV"]

{"sheet":"GAP-SP EG Alterswechsel","index":2,"n_rows":42,"n_cols":26,"rows_kept":42,"cut":false,"hidden":false,"merged":[[7,1,7,3],[0,0,0,3],[2,1,2,3],[3,1,3,3],[4,1,4,3],[5,1,5,3],[26,2,26,3],[27,2,27,3],[28,2,28,3],[29,0,29,3],[8,0,8,3],[9,2,9,3],[10,2,10,3],[21,0,21,1],[24,0,24,1],[25,2,25,3]]}
["Viehbesatzberechnung für GAP-Strategieplan \nExtensive Grünlandbewirtschaftung im Unternehmen mit Alterswechsel"]
[]
["Name:"]
["Straße & Hausnummer:"]
["PLZ:"]
["Ort:"]
[]
["Datum der Berechnung:"]
[{"$f":"IFERROR(\"\",IF(AND(C26<>0,C26<0.3),\"Der Viehbesatz darf an bis zu 40 Tagen unterschritten werden!\",\"\"))","v":""}]
["Dauergrünlandfläche in Hektar eingeben         "]
[]
["Tierart auswählen","RGV","Anzahl\nTiere \neingeben","Anzahl\nTiere \neingeben","Anzahl\nTiere \neingeben","Anzahl\nTiere \neingeben","Anzahl\nTiere \neingeben","Anzahl\nTiere \neingeben","Anzahl\nTiere \neingeben","Anzahl\nTiere \neingeben","Anzahl\nTiere \neingeben","Anzahl\nTiere \neingeben","Anzahl\nTiere \neingeben","Anzahl\nTiere \neingeben","Anzahl\nTiere \neingeben","Anzahl\nTiere \neingeben","Anzahl\nTiere \neingeben","Anzahl\nTiere \neingeben","Anzahl\nTiere \neingeben","Anzahl\nTiere \neingeben","Anzahl\nTiere \neingeben","Anzahl\nTiere \neingeben","Anzahl\nTiere \neingeben","Anzahl\nTiere \neingeben","Anzahl\nTiere \neingeben","Anzahl\nTiere \neingeben"]
[null,null,"Zeitraum 1","Zeitraum 2","Zeitraum 3","Zeitraum 4","Zeitraum 5","Zeitraum 6","Zeitraum 7","Zeitraum 8","Zeitraum 9","Zeitraum 10","Zeitraum 11","Zeitraum 12","Zeitraum 13","Zeitraum 14","Zeitraum 15","Zeitraum 16","Zeitraum 17","Zeitraum 18","Zeitraum 19","Zeitraum 20","Zeitraum 21","Zeitraum 22","Zeitraum 23","Zeitraum 24"]
[null,"Datum von"]
[null,"Datum bis"]
[null,{"$f":"IF(ISERROR(VLOOKUP(A16,$A$34:$B$42,2,FALSE)),\"\",VLOOKUP(A16,$A$34:$B$42,2,FALSE))","v":""}]
[null,""]
[null,""]
[null,""]
[null,""]
[null,""]
["Summe RGV",null,{"$f":"IF(C32=0,\"0\",SUMPRODUCT($B$16:$B$21,C16:C21))","v":"0"},{"$f":"IF(D32=0,\"0\",SUMPRODUCT($B$16:$B$21,D16:D21))","v":"0"},{"$f":"IF(E32=0,\"0\",SUMPRODUCT($B$16:$B$21,E16:E21))","v":"0"},"0",{"$f":"IF(G32=0,\"0\",SUMPRODUCT($B$16:$B$21,G16:G21))","v":"0"},"0","0","0","0","0","0","0","0","0","0","0","0","0","0","0","0","0","0","0"]
[null,"Anzahl Tage",{"$f":"IF(OR(C14=\"\",C15=\"\"),0,(C15-C14)+1)","v":0},{"$f":"IF(OR(D14=\"\",D15=\"\"),0,(D15-D14)+1)","v":0},0,0,0,0,0,0,0,0,0,0,0,0,0,0,0,0,0,0,0,0,0,0]
[null,"Viehbesatz pro Tag",{"$f":"IF(ISBLANK($C$10),\"\",(C22/$C$10))","v":""},{"$f":"IF(ISBLANK($C$10),\"\",(D22/$C$10))","v":""},{"$f":"IF(ISBLANK($C$10),\"\",(E22/$C$10))","v":""},"","","","","","","","","","","","","","","","","","","","",""]
["Viehbesatz Summe pro Zeitraum",null,{"$f":"IF(ISBLANK($C$10),\"\",C24*C23)","v":""},{"$f":"IF(ISBLANK($C$10),\"\",D24*D23)","v":""},{"$f":"IF(ISBLANK($C$10),\"\",E24*E23)","v":""},"","","","","","","","","","","","","","","","","","","","",""]
["(Zeitraum 01. Jan bis 31. Dez) Viehbesatz im Ø pro Tag",365,{"$f":"IF(OR(ISBLANK(C$10),ISBLANK(C22)),\"\",SUM(C25:Z25)/B26)","v":""}]
["(Zeitraum 01. Jan bis 31. Dez = 365 Tage) Viehbesatz im Ø pro Hektar & Jahr ",null,{"$f":"IF(OR(ISBLANK(C$10),ISBLANK(C22)),\"\",SUM(C25:Z25)/365)","v":""}]
["Min. Viehbesatz im Ø pro Hektar & Jahr",0.3,{"$f":"IF(OR(C10=\"\",C31=0),\"\",IF(C27<$B$28,\"Viehbesatz zu niedrig!\",\"OK\"))","v":""}]
["Max. Viehbesatz im Ø pro Hektar & Jahr",1,{"$f":"IF(OR(C10=\"\",C31=0),\"\",IF(C27>$B$29,\"Viehbesatz zu hoch!\",\"OK\"))","v":""}]
[{"$f":"IF(C33<>B26,\"Die aktuelle Eingabe entspricht nicht 365 Tagen!\",\"\")","v":"Die aktuelle Eingabe entspricht nicht 365 Tagen!"}]
[null,null,{"$f":"SUM(C16:C21)","v":0},{"$f":"SUM(D16:D21)","v":0},0,0,0,{"$f":"SUM(H16:H21)","v":0},0,0,0,0,0,0,0,0,0,0,0,0,0,0,0,0,0,0]
[null,null,{"$f":"SUMPRODUCT($B$16:$B$21,C16:C21)","v":0},{"$f":"SUMPRODUCT($B$16:$B$21,D16:D21)","v":0},0,0,0,{"$f":"SUMPRODUCT($B$16:$B$21,H16:H21)","v":0},0,0,0,0,0,0,0,0,0,0,0,0,0,0,0,0,0,0]
[null,null,{"$f":"IF(SUM(C23:Z23)=0,0,SUM(C23:Z23)-1)","v":0}]
["Bullen, Kühe und sonstige Rinder über 2 Jahre",1,"RGV"]
["Rinder von 6 Monaten bis 2 Jahren",0.6,"RGV",null,{"$f":"tage","v":{"$error":"#NAME?"}}]
["Rinder unter 6 Monaten",0.4,"RGV"]
["Pferde & Equiden (ohne Ponys) von mehr als 6 Monaten",1,"RGV"]
["Ponys von mehr als 6 Monaten",0.7,"RGV"]
["Mutterschafe & Schafe über 1 Jahr",0.15,"RGV"]
["Mutterziegen & Ziegen über 1 Jahr",0.15,"RGV"]
["Damwild",0.15,"RGV"]
["Rotwild",0.3,"RGV"]

{"sheet":"VNG Weidetage berechnen","index":3,"n_rows":34,"n_cols":17,"rows_kept":34,"cut":false,"hidden":false,"merged":[[4,0,4,1],[5,0,5,1],[6,0,6,1],[7,0,7,1],[8,0,8,1],[1,2,1,16],[2,2,2,16],[3,2,3,16],[2,0,2,1],[3,0,3,1]]}
[null,"bitte hier wählen:"]
["Berechnung durchführen für Programmteil:","GMW",{"$f":"VLOOKUP(B2,Stammdaten!A57:B59,2,FALSE)","v":"Vertragsnaturschutz Mähwiesen und Weiden"}]
["Jahr"]
["Betrieb"]
["Schlag"]
["Nutzungart (Weide, Mähweide, ganzjährig)"]
["Flächengröße  ha:"]
["Datum Auftrieb oder Beginn der Beweidung (optional)"]
["Datum Abtrieb oder Ende der Beweidung  (optional)"]
["Tiergruppen","RGV","Tiere","Tiere","Tiere","Tiere","Tiere","Tiere","Tiere","Tiere","Tiere","Tiere","Tiere","Tiere","Tiere","Tiere","Tiere"]
[]
[null,{"$f":"IF(ISERROR(VLOOKUP(A12,Stammdaten!$A$2:$C$8,2,FALSE)),\"\",VLOOKUP(A12,Stammdaten!$A$2:$C$8,2,FALSE))","v":""}]
[null,{"$f":"IF(ISERROR(VLOOKUP(A13,Stammdaten!$A$2:$C$8,2,FALSE)),\"\",VLOOKUP(A13,Stammdaten!$A$2:$C$8,2,FALSE))","v":""}]
[null,{"$f":"IF(ISERROR(VLOOKUP(A14,Stammdaten!$A$2:$C$8,2,FALSE)),\"\",VLOOKUP(A14,Stammdaten!$A$2:$C$8,2,FALSE))","v":""}]
[null,{"$f":"IF(ISERROR(VLOOKUP(A15,Stammdaten!$A$2:$C$8,2,FALSE)),\"\",VLOOKUP(A15,Stammdaten!$A$2:$C$8,2,FALSE))","v":""}]
[null,{"$f":"IF(ISERROR(VLOOKUP(A16,Stammdaten!$A$2:$C$8,2,FALSE)),\"\",VLOOKUP(A16,Stammdaten!$A$2:$C$8,2,FALSE))","v":""}]
[null,{"$f":"IF(ISERROR(VLOOKUP(A17,Stammdaten!$A$2:$C$8,2,FALSE)),\"\",VLOOKUP(A17,Stammdaten!$A$2:$C$8,2,FALSE))","v":""}]
[null,{"$f":"IF(ISERROR(VLOOKUP(A18,Stammdaten!$A$3:$B$13,2,FALSE)),\"\",VLOOKUP(A18,Stammdaten!$A$3:$B$13,2,FALSE))","v":""}]
["Summe RGV",null,{"$f":"SUMPRODUCT($B$12:$B$17,C12:C17)","v":0},0,0,0,0,0,0,0,0,0,0,0,0,0,0]
["aktuelle Weidetage ",null,{"$f":"DAYS360(C8,C9)","v":0},0,0,0,0,0,0,0,0,0,0,0,0,0,0]
["Viehbesatz pro Tag ",null,{"$f":"IF(ISBLANK(C$7),\"\",(C$19/C$7))","v":""},"","","","","","","","","","","","","",""]
["Viehbesatz Durchschnitt Jahr",null,{"$f":"IF(ISBLANK(C$7),\"\",C$19/C$7/360*C$20)","v":""},"","","","","","","","","","","","","",""]
["Hier werden die möglichen Weidetage angezeigt:"]
["MIN  Anzahl Weidetage bei ausschließlicher Weidenutzung",{"$f":"VLOOKUP($B$2,Stammdaten!$A$57:$E$58,3,FALSE)","v":0.3},{"$f":"IF(OR(ISERROR(OR(C$7,C$19)),OR(C$7=0,C$19=0)),\"\",$B$24*360*C$7/C$19)","v":""},{"$f":"IF(OR(ISERROR(OR(D7,D19)),OR(D7=0,D19=0)),\"\",$B$24*360*D7/D19)","v":""},"","","","","","","","","","","","",""]
["MAX Anzahl Weidetage bei ausschließlicher Weidenutzung",{"$f":"VLOOKUP($B$2,Stammdaten!$A$57:$E$58,4,FALSE)","v":1.2},{"$f":"IF(OR(ISERROR(OR(C$7,C$19)),OR(C$7=0,C$19=0)),\"\",$B$25*360*C$7/C$19)","v":""},"","","","","","","","","","","","","",""]
["MAX Anzahl Weidetage bei Mähweidenutzung",{"$f":"VLOOKUP($B$2,Stammdaten!$A$57:$E$58,5,FALSE)","v":0.6},{"$f":"IF(OR(ISERROR(OR(C$7,C$19)),OR(C$7=0,C$19=0)),\"\",$B$26*360*C$7/C$19)","v":""},"","","","","","","","","","","","","",""]
[]
["Bullen, Kühe und sonstige Rinder über 2 Jahre"]
["Rinder von 6 Monaten bis 2 Jahren"]
["Rinder unter 6 Monaten"]
["Pferde & Equiden (ohne Ponys) von mehr als 6 Monaten"]
["Ponys von mehr als 6 Monaten"]
["Mutterschafe & Schafe über 1 Jahr"]
["Mutterziegen & Ziegen über 1 Jahr"]

{"sheet":"Stammdaten","index":4,"n_rows":59,"n_cols":5,"rows_kept":59,"cut":false,"hidden":true,"merged":[]}
[]
["Bullen, Kühe und sonstige Rinder über 2 Jahre",1,"RGV"]
["Rinder von 6 Monaten bis 2 Jahren",0.6,"RGV"]
["Rinder unter 6 Monaten",0.4,"RGV"]
["Pferde & Equiden (ohne Ponys) von mehr als 6 Monaten",1,"RGV"]
["Ponys von mehr als 6 Monaten",0.7,"RGV"]
["Mutterschafe & Schafe über 1 Jahr",0.15,"RGV"]
["Mutterziegen & Ziegen über 1 Jahr",0.15,"RGV"]
[]
[]
[]
[]
[]
[]
[]
["Grenzen","GMW","GA","UG"]
["Max. Viehbesatz Durchschnitt Jahr - Weide",1.2,1]
["Max. Viehbesatz Durchschnitt Jahr - Mähweide",0.6,0.5]
["Max. Viehbesatz pro Tag - ganzj. Beweidung, 15.11 - 30.04 (GMW) / 31.05.(GA) ",0.6,0.6]
["Min. Viehbesatz Durchschnitt Jahr - Weide",0.3,0.3]
["Min. Viehbesatz pro Tag",null,null,0.3]
["Max. Viehbesatz pro Tag",null,null,1.4]
["Max. Viehbesatz pro Tag Zusatzmodul Extensiv",null,null,1]
["Max. GVE pro ha Zusatzmodul Extensiv",null,null,1]
["Max. GVE pro ha",null,null,1.4]
[]
["Tiergruppe","GVE"]
["Ferkel",0.02]
["Mastschweine bei Betrachtung der gesamten Mastdauer",0.13]
["Läufer (20-50 kg)",0.06]
["sonstige Mastschweine (über 50 kg)",0.16]
["Zuchtschweine",0.3]
["Legehennen",4.0000000000000001E-3]
["Sonstiges Geflügel",4.0000000000000001E-3]
[]
["GVE gemäß DüV Anlage 9 Tabelle 2","GVE"]
["Kälber und Jungrinder unter 1 Jahr",0.3]
["Jungrinder von 1  bis unter 2 Jahren",0.7]
["Rinder von mehr als 2 Jahren",1]
["Ponys und Kleinpferde mit einem Stockmaß bis einschließlich 1,40 m",0.7]
["Andere Pferde unter 3 Jahren ",0.7]
["Andere Pferde ab 3 Jahre und älter",1.1000000000000001]
["Schafe  unter 1 Jahr einschließlich Lämmer",0.05]
["Schafe 1 Jahr und älter",0.1]
["Ziegen",0.15]
["Mutterdamtiere",0.2]
["Lamas",0.4]
["Alpakas und Guanakos",0.3]
["Ferkel",0.02]
["Schweine unter 50 kg Lebendgewicht",0.06]
["Mastschweine über 50 kg",0.16]
["Zuchtschweine, Eber über 50 kg LG",0.3]
["Legehennen und Masthähnchen",4.0000000000000001E-3]
["Sonstiges Geflügel (Gänse, Enten, Truthühner, etc.)",4.0000000000000001E-3]
[]
["Programmteile",null,"Min. Viehbesatz Durchschnitt Jahr - Weide","Max. Viehbesatz Durchschnitt Jahr - Weide","Max. Viehbesatz Durchschnitt Jahr - Mähweide"]
["GMW","Vertragsnaturschutz Mähwiesen und Weiden",0.3,1.2,0.6]
["GA","Vertragsnaturschutz artenreiches Grünland",0.3,1,0.5]
["UG","Umweltschonende Grünlandbewirtschaftung im Unternehmen"]